fUSD/lending_fUSD_20250120
["ID","MTS","AMOUNT","RATE_DAILY","PERIOD"]
[349742445,1737407435277,-842.69,0.00019896,2]
[349742446,1737407435288,-1603.43,0.00019896,2]
[349742447,1737407435299,-230.13,0.00019896,2]
[349742448,1737407435312,-920.25,0.00019896,2]
[349742449,1737407435323,-1753.14,0.00019896,2]
[349742450,1737407435333,-501.56,0.00019896,2]
[349742451,1737407435343,-1816.42,0.00019896,2]
[349742452,1737407435354,-1197.11,0.00019896,2]
[349742453,1737407435363,-618.65,0.00019896,2]
[349742454,1737407435372,-701.44,0.00019896,2]
[349742455,1737407435382,-533.91,0.00019896,2]
[349742456,1737407435392,-500.0,0.00019896,2]
[349742457,1737407435402,-669.97,0.00019896,2]
[349742458,1737407435412,-392.13962435,0.00019896,2]
[349742459,1737407435422,-2065.12,0.00019896,2]
[349742460,1737407435431,-967.37,0.00019896,2]
[349742461,1737407435440,-1967.82,0.00019896,2]
[349742462,1737407435450,-500.0,0.00019896,2]
[349742463,1737407435459,-500.0,0.00019896,2]
[349742464,1737407435470,-500.0,0.00019896,2]
[349742465,1737407435480,-500.0,0.00019896,2]
[349742466,1737407435490,-500.0,0.00019896,2]
[349742467,1737407435499,-500.0,0.00019896,2]
[349742468,1737407435508,-500.0,0.00019896,2]
[349742469,1737407435517,-2497.3,0.00019896,2]
[349742470,1737407435527,-500.0,0.00019896,2]
[349742471,1737407435537,-1204.78,0.00019896,2]
[349742472,1737407435546,-500.0,0.00019896,2]
[349742473,1737407435555,-500.0,0.00019897,2]
[349742474,1737407435565,-500.0,0.00019897,2]
[349742475,1737407435574,-500.0,0.00019897,2]
[349742476,1737407435583,-318.38,0.00019897,2]
[349742477,1737407435592,-500.0,0.00019897,2]
[349742478,1737407435602,-500.0,0.00019897,2]
[349742479,1737407435611,-500.0,0.00019897,2]
[349742480,1737407435620,-500.0,0.00019897,2]
[349742481,1737407435630,-500.0,0.00019897,2]
[349742482,1737407435640,-500.0,0.00019897,2]
[349742483,1737407435649,-500.0,0.00019897,2]
[349742484,1737407435659,-500.0,0.00019897,2]
[349742485,1737407435669,-500.0,0.00019897,2]
[349742486,1737407435679,-500.0,0.00019897,2]
[349742487,1737407435689,-500.0,0.00019897,2]
[349742488,1737407435698,-500.0,0.00019897,2]
[349742489,1737407435707,-500.0,0.00019897,2]
[349742490,1737407435717,-831.42,0.00019897,2]
[349742491,1737407435726,-500.0,0.00019897,2]
[349742492,1737407435736,-500.0,0.00019897,2]
[349742493,1737407435745,-500.0,0.00019897,2]
[349742494,1737407435754,-500.0,0.00019897,2]
[349742495,1737407435763,-500.0,0.00019897,2]
[349742496,1737407435773,-598.41,0.00019897,2]
[349742497,1737407435782,-500.0,0.00019897,2]
[349742498,1737407435792,-500.0,0.00019897,2]
[349742499,1737407435801,-500.0,0.00019897,2]
[349742500,1737407435810,-621.52,0.00019897,2]
[349742501,1737407435819,-500.0,0.00019897,2]
[349742502,1737407435828,-500.0,0.00019897,2]
[349742503,1737407435838,-500.0,0.00019897,2]
[349742504,1737407435847,-586.29715844,0.00019897,2]
[349742505,1737407435857,-500.0,0.00019897,2]
[349742506,1737407435866,-500.0,0.00019897,2]
[349742507,1737407435875,-616.25596824,0.00019897,2]
[349742508,1737407435884,-500.0,0.00019897,2]
[349742509,1737407435893,-500.0,0.00019897,2]
[349742510,1737407435903,-500.0,0.00019897,2]
[349742511,1737407435913,-500.0,0.00019897,2]
[349742512,1737407435922,-500.0,0.00019897,2]
[349742513,1737407435931,-500.0,0.00019897,2]
[349742514,1737407435941,-500.0,0.00019897,2]
[349742515,1737407435950,-500.0,0.00019897,2]
[349742516,1737407435960,-500.0,0.00019897,2]
[349742517,1737407435972,-500.0,0.00019897,2]
[349742518,1737407435982,-500.0,0.00019897,2]
[349742519,1737407435991,-500.0,0.00019897,2]
[349742520,1737407436001,-500.0,0.00019897,2]
[349742521,1737407436012,-500.0,0.00019897,2]
[349742522,1737407436021,-500.0,0.00019897,2]
[349742523,1737407436030,-500.0,0.00019897,2]
[349742524,1737407436040,-500.0,0.00019897,2]
[349742525,1737407436049,-500.0,0.00019897,2]
[349742526,1737407436058,-500.0,0.00019897,2]
[349742527,1737407436067,-503.14,0.00019897,2]
[349742528,1737407436077,-500.0,0.00019897,2]
[349742529,1737407436086,-500.0,0.00019897,2]
[349742530,1737407436096,-500.0,0.00019897,2]
[349742531,1737407436105,-500.0,0.00019897,2]
[349742532,1737407436115,-500.0,0.00019897,2]
[349742533,1737407436125,-500.0,0.00019897,2]
[349742534,1737407436134,-500.0,0.00019897,2]
[349742535,1737407436144,-557.57,0.00019897,2]
[349742536,1737407436153,-500.0,0.00019897,2]
[349742537,1737407436162,-500.0,0.00019897,2]
[349742538,1737407436172,-500.0,0.00019897,2]
[349742539,1737407436182,-500.0,0.00019897,2]
[349742540,1737407436192,-500.0,0.00019897,2]
[349742541,1737407436201,-500.0,0.00019897,2]
[349742542,1737407436211,-500.0,0.00019897,2]
[349742543,1737407436223,-500.0,0.00019897,2]
[349742544,1737407436369,-500.0,0.00019897,2]
[349742545,1737407436380,-500.0,0.00019897,2]
[349742546,1737407436390,-500.0,0.00019897,2]
[349742547,1737407436400,-500.0,0.00019897,2]
[349742548,1737407436409,-500.0,0.00019897,2]
[349742549,1737407436418,-500.0,0.00019897,2]
[349742550,1737407436428,-500.0,0.00019897,2]
[349742551,1737407436437,-500.0,0.00019897,2]
[349742552,1737407436446,-500.0,0.00019897,2]
[349742553,1737407436456,-712.08,0.00019897,2]
[349742554,1737407436466,-620.12,0.00019897,2]
[349742555,1737407436476,-500.0,0.00019897,2]
[349742556,1737407436486,-500.0,0.00019897,2]
[349742557,1737407436495,-647.46,0.00019897,2]
[349742558,1737407436504,-508.6,0.00019897,2]
[349742559,1737407436514,-535.85,0.00019897,2]
[349742560,1737407436523,-565.33,0.00019897,2]
[349742561,1737407436533,-500.0,0.00019897,2]
[349742562,1737407436542,-882.02,0.00019897,2]
[349742563,1737407436560,-500.0,0.00019897,2]
[349742564,1737407436576,-833.13,0.00019897,2]
[349742565,1737407436586,-500.0,0.00019897,2]
[349742566,1737407436598,-589.68,0.00019897,2]
[349742567,1737407436609,-586.61,0.00019897,2]
[349742568,1737407436619,-500.0,0.00019897,2]
[349742569,1737407436628,-500.0,0.00019897,2]
[349742570,1737407436639,-570.44,0.00019897,2]
[349742571,1737407436652,-1455.45,0.00019897,2]
[349742572,1737407436663,-1274.82,0.00019897,2]
[349742573,1737407436674,-2662.01,0.00019897,2]
[349742574,1737407436684,-1111.74,0.00019897,2]
[349742575,1737407436694,-500.0,0.00019897,2]
[349742576,1737407436704,-500.0,0.00019897,2]
[349742577,1737407436713,-1561.89,0.00019897,2]
[349742578,1737407436724,-565.23,0.00019897,2]
[349742579,1737407436734,-500.0,0.00019897,2]
[349742580,1737407436743,-653.52,0.00019897,2]
[349742581,1737407436752,-700.15,0.00019897,2]
[349742582,1737407436762,-500.0,0.00019897,2]
[349742583,1737407436772,-500.0,0.00019897,2]
[349742584,1737407436781,-500.0,0.00019897,2]
[349742585,1737407436790,-639.2,0.00019897,2]
[349742586,1737407436800,-895.71,0.00019897,2]
[349742587,1737407436809,-500.0,0.00019897,2]
[349742588,1737407436819,-500.0,0.00019897,2]
[349742589,1737407436829,-1441.83,0.00019897,2]
[349742590,1737407436839,-2905.61,0.00019897,2]
[349742591,1737407436848,-2071.72,0.00019897,2]
[349742592,1737407436858,-500.0,0.00019897,2]
[349742593,1737407436867,-500.0,0.00019897,2]
[349742594,1737407436877,-500.0,0.00019897,2]
[349742595,1737407436886,-926.82,0.00019897,2]
[349742596,1737407436896,-500.0,0.00019897,2]
[349742597,1737407436906,-500.0,0.00019897,2]
[349742598,1737407436916,-500.0,0.00019897,2]
[349742599,1737407436926,-757.42,0.00019897,2]
[349742600,1737407436935,-500.0,0.00019897,2]
[349742601,1737407436945,-1326.53,0.00019897,2]
[349742602,1737407436954,-500.0,0.00019897,2]
[349742603,1737407436964,-1124.1,0.00019897,2]
[349742604,1737407436974,-500.0,0.00019897,2]
[349742605,1737407436984,-500.0,0.00019897,2]
[349742606,1737407436994,-1071.26,0.00019897,2]
[349742607,1737407437004,-533.17,0.00019897,2]
[349742608,1737407437014,-500.0,0.00019897,2]
[349742609,1737407437023,-500.0,0.00019897,2]
[349742610,1737407437033,-567.16,0.00019897,2]
[349742611,1737407437042,-2251.5,0.00019897,2]
[349742612,1737407437052,-1000.0,0.00019897,2]
[349742613,1737407437063,-500.0,0.00019897,2]
[349742614,1737407437072,-890.33,0.00019897,2]
[349742615,1737407437082,-500.0,0.00019897,2]
[349742616,1737407437093,-500.0,0.00019897,2]
[349742617,1737407437103,-500.0,0.00019897,2]
[349742618,1737407437112,-500.0,0.00019897,2]
[349742619,1737407437122,-1074.21,0.00019897,2]
[349742620,1737407437132,-500.0,0.00019897,2]
[349742621,1737407437142,-511.77,0.00019897,2]
[349742622,1737407437153,-1524.25,0.00019897,2]
[349742623,1737407437163,-500.0,0.00019897,2]
[349742624,1737407437172,-712.7,0.00019897,2]
[349742625,1737407437182,-500.0,0.00019897,2]
[349742626,1737407437193,-1770.63,0.00019897,2]
[349742627,1737407437202,-588.47,0.00019897,2]
[349742628,1737407437212,-626.48,0.00019897,2]
[349742629,1737407437223,-982.48,0.00019897,2]
[349742630,1737407437233,-500.0,0.00019897,2]
[349742631,1737407437241,-500.0,0.00019897,2]
[349742632,1737407437251,-225.7003993,0.000199,2]
[349742633,1737407437260,-1309.0,0.0002,2]
[349742634,1737407437270,-2086.0,0.0002,2]
[349742635,1737407437279,-427.15934284,0.00020024,2]
[349742636,1737407437290,-3172.18213108,0.00020051,2]
[349742637,1737407437299,-485.8540777,0.00020071,2]
[349742638,1737407437311,-150.0,0.00020142,2]
[349742639,1737407437320,-1172.0,0.00020142,2]
[349742640,1737407437330,-3901.0,0.00020142,2]
[349742641,1737407437339,-1105.0,0.00020142,2]
[349742642,1737407437348,-200.37334334,0.0002017,2]
[349742643,1737407437358,-667.78,0.0002017,2]
[349742644,1737407437367,-1277.15,0.0002017,2]
[349742645,1737407437377,-488.200816,0.0002017,2]
[349742646,1737407437387,-500.0,0.0002017,2]
[349742647,1737407437396,-500.0,0.0002017,2]
[349742648,1737407437406,-500.0,0.0002017,2]
[349742649,1737407437415,-500.0,0.0002017,2]
[349742650,1737407437424,-990.56,0.0002017,2]
[349742651,1737407437434,-1476.08,0.0002017,2]
[349742652,1737407437442,-372.560492,0.0002017,2]
[349742653,1737407437452,-876.47,0.0002017,2]
[349742654,1737407437462,-500.0,0.0002017,2]
[349742655,1737407437474,-740.71,0.0002017,2]
[349742656,1737407437483,-1321.98,0.0002017,2]
[349742657,1737407437493,-561.6,0.0002017,2]
[349742658,1737407437502,-2154.89,0.0002017,2]
[349742659,1737407437511,-681.41,0.0002017,2]
[349742660,1737407437521,-500.0,0.0002017,2]
[349742661,1737407437530,-1610.89,0.0002017,2]
[349742662,1737407437540,-500.0,0.0002017,2]
[349742663,1737407437550,-500.0,0.0002017,2]
[349742664,1737407437559,-876.09,0.0002017,2]
[349742665,1737407437568,-917.27,0.0002017,2]
[349742666,1737407437578,-1013.08,0.0002017,2]
[349742667,1737407437587,-500.0,0.0002017,2]
[349742668,1737407437597,-1192.37,0.0002017,2]
[349742669,1737407437607,-588.15,0.0002017,2]
[349742670,1737407437616,-879.6,0.0002017,2]
[349742671,1737407437627,-842.69,0.0002017,2]
[349742672,1737407437636,-1603.43,0.0002017,2]
[349742673,1737407437646,-920.25,0.0002017,2]
[349742674,1737407437657,-1753.14,0.0002017,2]
[349742675,1737407437667,-501.56,0.0002017,2]
[349742676,1737407437677,-1816.42,0.0002017,2]
[349742677,1737407437687,-1197.11,0.0002017,2]
[349742678,1737407437697,-618.65,0.0002017,2]
[349742679,1737407437707,-701.44,0.0002017,2]
[349742680,1737407437716,-533.91,0.0002017,2]
[349742681,1737407437729,-500.0,0.0002017,2]
[349742682,1737407437739,-669.97,0.0002017,2]
[349742683,1737407437748,-2065.12,0.0002017,2]
[349742684,1737407437758,-967.37,0.0002017,2]
[349742685,1737407437769,-1967.82,0.0002017,2]
[349742686,1737407437779,-500.0,0.0002017,2]
[349742687,1737407437789,-500.0,0.0002017,2]
[349742688,1737407437798,-500.0,0.0002017,2]
[349742689,1737407437808,-440.68,0.0002017,2]
[349742690,1737407437818,-500.0,0.0002017,2]
[349742691,1737407437828,-500.0,0.0002017,2]
[349742692,1737407437837,-2497.3,0.0002017,2]
[349742693,1737407437847,-1204.78,0.0002017,2]
[349742694,1737407437856,-161.63403051,0.00020171,2]
[349742695,1737407437866,-500.0,0.00020171,2]
[349742696,1737407437875,-500.0,0.00020171,2]
[349742697,1737407437885,-500.0,0.00020171,2]
[349742698,1737407437895,-500.0,0.00020171,2]
[349742699,1737407437905,-500.0,0.00020171,2]
[349742700,1737407437915,-500.0,0.00020171,2]
[349742701,1737407437925,-500.0,0.00020171,2]
[349742702,1737407437934,-500.0,0.00020171,2]
[349742703,1737407437944,-500.0,0.00020171,2]
[349742704,1737407437954,-500.0,0.00020171,2]
[349742705,1737407437964,-317.8570847,0.00020171,2]
[349742706,1737407437975,-500.0,0.00020171,2]
[349742707,1737407437984,-500.0,0.00020171,2]
[349742708,1737407437995,-500.0,0.00020171,2]
[349742709,1737407438005,-500.0,0.00020171,2]
[349742710,1737407438014,-831.42,0.00020171,2]
[349742711,1737407438025,-500.0,0.00020171,2]
[349742712,1737407438035,-500.0,0.00020171,2]
[349742713,1737407438044,-500.0,0.00020171,2]
[349742714,1737407438054,-500.0,0.00020171,2]
[349742715,1737407438064,-500.0,0.00020171,2]
[349742716,1737407438073,-598.41,0.00020171,2]
[349742717,1737407438083,-500.0,0.00020171,2]
[349742718,1737407438092,-500.0,0.00020171,2]
[349742719,1737407438101,-500.0,0.00020171,2]
[349742720,1737407438110,-621.52,0.00020171,2]
[349742721,1737407438119,-500.0,0.00020171,2]
[349742722,1737407438129,-500.0,0.00020171,2]
[349742723,1737407438140,-500.0,0.00020171,2]
[349742724,1737407438150,-500.0,0.00020171,2]
[349742725,1737407438159,-500.0,0.00020171,2]
[349742726,1737407438169,-500.0,0.00020171,2]
[349742727,1737407438179,-549.92,0.00020171,2]
[349742728,1737407438189,-500.0,0.00020171,2]
[349742729,1737407438199,-500.0,0.00020171,2]
[349742730,1737407438209,-500.0,0.00020171,2]
[349742731,1737407438219,-500.0,0.00020171,2]
[349742732,1737407438229,-500.0,0.00020171,2]
[349742733,1737407438239,-500.0,0.00020171,2]
[349742734,1737407438249,-500.0,0.00020171,2]
[349742735,1737407438259,-500.0,0.00020171,2]
[349742736,1737407438269,-500.0,0.00020171,2]
[349742737,1737407438279,-500.0,0.00020171,2]
[349742738,1737407438297,-500.0,0.00020171,2]
[349742739,1737407438308,-500.0,0.00020171,2]
[349742740,1737407438318,-500.0,0.00020171,2]
[349742741,1737407438327,-500.0,0.00020171,2]
[349742742,1737407438337,-367.11,0.00020171,2]
[349742743,1737407438348,-500.0,0.00020171,2]
[349742744,1737407438358,-234.68582946,0.00020171,2]
[349742745,1737407438367,-503.14,0.00020171,2]
[349742746,1737407438377,-500.0,0.00020171,2]
[349742747,1737407438388,-500.0,0.00020171,2]
[349742748,1737407438398,-500.0,0.00020171,2]
[349742749,1737407438407,-500.0,0.00020171,2]
[349742750,1737407438417,-500.0,0.00020171,2]
[349742751,1737407438426,-500.0,0.00020171,2]
[349742752,1737407438435,-500.0,0.00020171,2]
[349742753,1737407438445,-557.57,0.00020171,2]
[349742754,1737407438454,-500.0,0.00020171,2]
[349742755,1737407438463,-500.0,0.00020171,2]
[349742756,1737407438473,-500.0,0.00020171,2]
[349742757,1737407438483,-500.0,0.00020171,2]
[349742758,1737407438492,-500.0,0.00020171,2]
[349742759,1737407438501,-500.0,0.00020171,2]
[349742760,1737407438511,-500.0,0.00020171,2]
[349742761,1737407438520,-500.0,0.00020171,2]
[349742762,1737407438529,-500.0,0.00020171,2]
[349742763,1737407438538,-500.0,0.00020171,2]
[349742764,1737407438548,-500.0,0.00020171,2]
[349742765,1737407438560,-500.0,0.00020171,2]
[349742766,1737407438570,-500.0,0.00020171,2]
[349742767,1737407438579,-500.0,0.00020171,2]
[349742768,1737407438589,-500.0,0.00020171,2]
[349742769,1737407438598,-500.0,0.00020171,2]
[349742770,1737407438607,-500.0,0.00020171,2]
[349742771,1737407438616,-712.08,0.00020171,2]
[349742772,1737407438627,-620.12,0.00020171,2]
[349742773,1737407438636,-500.0,0.00020171,2]
[349742774,1737407438645,-500.0,0.00020171,2]
[349742775,1737407438655,-647.46,0.00020171,2]
[349742776,1737407438665,-508.6,0.00020171,2]
[349742777,1737407438675,-535.85,0.00020171,2]
[349742778,1737407438683,-565.33,0.00020171,2]
[349742779,1737407438692,-500.0,0.00020171,2]
[349742780,1737407438702,-882.02,0.00020171,2]
[349742781,1737407438711,-500.0,0.00020171,2]
[349742782,1737407438720,-833.13,0.00020171,2]
[349742783,1737407438730,-500.0,0.00020171,2]
[349742784,1737407438739,-589.68,0.00020171,2]
[349742785,1737407438749,-586.61,0.00020171,2]
[349742786,1737407438758,-500.0,0.00020171,2]
[349742787,1737407438767,-500.0,0.00020171,2]
[349742788,1737407438776,-570.44,0.00020171,2]
[349742789,1737407438785,-1455.45,0.00020171,2]
[349742790,1737407438794,-1274.82,0.00020171,2]
[349742792,1737407438803,-2662.01,0.00020171,2]
[349742793,1737407438811,-1111.74,0.00020171,2]
[349742794,1737407438820,-500.0,0.00020171,2]
[349742795,1737407438829,-500.0,0.00020171,2]
[349742796,1737407438838,-1561.89,0.00020171,2]
[349742797,1737407438846,-565.23,0.00020171,2]
[349742799,1737407438855,-500.0,0.00020171,2]
[349742801,1737407438864,-653.52,0.00020171,2]
[349742803,1737407438873,-700.15,0.00020171,2]
[349742804,1737407438882,-500.0,0.00020171,2]
[349742805,1737407438891,-262.42,0.00020171,2]
[349742806,1737407438899,-500.0,0.00020171,2]
[349742807,1737407438908,-639.2,0.00020171,2]
[349742808,1737407438917,-895.71,0.00020171,2]
[349742809,1737407438925,-500.0,0.00020171,2]
[349742810,1737407438934,-500.0,0.00020171,2]
[349742811,1737407438943,-1441.83,0.00020171,2]
[349742812,1737407438952,-2905.61,0.00020171,2]
[349742813,1737407438961,-2071.72,0.00020171,2]
[349742814,1737407438971,-500.0,0.00020171,2]
[349742815,1737407438980,-500.0,0.00020171,2]
[349742816,1737407438989,-500.0,0.00020171,2]
[349742817,1737407438998,-926.82,0.00020171,2]
[349742818,1737407439007,-500.0,0.00020171,2]
[349742819,1737407439016,-500.0,0.00020171,2]
[349742820,1737407439025,-500.0,0.00020171,2]
[349742821,1737407439034,-757.42,0.00020171,2]
[349742822,1737407439043,-500.0,0.00020171,2]
[349742823,1737407439052,-1326.53,0.00020171,2]
[349742824,1737407439061,-500.0,0.00020171,2]
[349742825,1737407439070,-1124.1,0.00020171,2]
[349742826,1737407439079,-473.18882447,0.00020171,2]
[349742827,1737407439088,-500.0,0.00020171,2]
[349742828,1737407439097,-1071.26,0.00020171,2]
[349742829,1737407439106,-533.17,0.00020171,2]
[349742830,1737407439115,-500.0,0.00020171,2]
[349742831,1737407439124,-500.0,0.00020171,2]
[349742835,1737407439262,-567.16,0.00020171,2]
[349742836,1737407439272,-2251.5,0.00020171,2]
[349742837,1737407439281,-1000.0,0.00020171,2]
[349742838,1737407439292,-487.94365971,0.00020171,2]
[349742839,1737407439301,-890.33,0.00020171,2]
[349742840,1737407439313,-500.0,0.00020171,2]
[349742841,1737407439322,-500.0,0.00020171,2]
[349742842,1737407439332,-500.0,0.00020171,2]
[349742843,1737407439341,-500.0,0.00020171,2]
[349742844,1737407439351,-1074.21,0.00020171,2]
[349742845,1737407439361,-500.0,0.00020171,2]
[349742846,1737407439370,-511.77,0.00020171,2]
[349742847,1737407439380,-1524.25,0.00020171,2]
[349742848,1737407439391,-500.0,0.00020171,2]
[349742849,1737407439401,-712.7,0.00020171,2]
[349742850,1737407439411,-500.0,0.00020171,2]
[349742851,1737407439421,-1770.63,0.00020171,2]
[349742852,1737407439430,-626.48,0.00020171,2]
[349742853,1737407439440,-982.48,0.00020171,2]
[349742854,1737407439449,-500.0,0.00020171,2]
[349742855,1737407439458,-500.0,0.00020171,2]
[349742856,1737407439468,-485.85407769,0.00020202,2]
[349742857,1737407439484,-1117.74,0.00020272,2]
[349742858,1737407439493,-3172.18213108,0.00020315,2]
[349742859,1737407439503,-485.85407769,0.00020332,2]
[349742860,1737407439512,-772.56,0.0002042,2]
[349742861,1737407439522,-667.78,0.00020444,2]
[349742862,1737407439531,-1277.15,0.00020444,2]
[349742863,1737407439540,-488.200816,0.00020444,2]
[349742864,1737407439550,-500.0,0.00020444,2]
[349742865,1737407439559,-500.0,0.00020444,2]
[349742866,1737407439568,-500.0,0.00020444,2]
[349742867,1737407439578,-500.0,0.00020444,2]
[349742868,1737407439587,-990.56,0.00020444,2]
[349742869,1737407439597,-1476.08,0.00020444,2]
[349742870,1737407439607,-372.560492,0.00020444,2]
[349742871,1737407439616,-876.47,0.00020444,2]
[349742872,1737407439625,-500.0,0.00020444,2]
[349742873,1737407439634,-740.71,0.00020444,2]
[349742874,1737407439644,-1321.98,0.00020444,2]
[349742875,1737407439654,-561.6,0.00020444,2]
[349742876,1737407439664,-2154.89,0.00020444,2]
[349742877,1737407439673,-681.41,0.00020444,2]
[349742878,1737407439683,-500.0,0.00020444,2]
[349742879,1737407439693,-1610.89,0.00020444,2]
[349742880,1737407439702,-500.0,0.00020444,2]
[349742881,1737407439711,-500.0,0.00020444,2]
[349742882,1737407439723,-876.09,0.00020444,2]
[349742883,1737407439732,-917.27,0.00020444,2]
[349742884,1737407439741,-1013.08,0.00020444,2]
[349742885,1737407439751,-500.0,0.00020444,2]
[349742886,1737407439760,-1192.37,0.00020444,2]
[349742887,1737407439769,-588.15,0.00020444,2]
[349742888,1737407439779,-879.6,0.00020444,2]
[349742889,1737407439788,-842.69,0.00020444,2]
[349742890,1737407439798,-1603.43,0.00020444,2]
[349742891,1737407439808,-920.25,0.00020444,2]
[349742892,1737407439818,-1753.14,0.00020444,2]
[349742893,1737407439827,-501.56,0.00020444,2]
[349742894,1737407439836,-1816.42,0.00020444,2]
[349742895,1737407439846,-1197.11,0.00020444,2]
[349742896,1737407439854,-618.65,0.00020444,2]
[349742897,1737407439864,-701.44,0.00020444,2]
[349742898,1737407439874,-533.91,0.00020444,2]
[349742899,1737407439883,-500.0,0.00020444,2]
[349742900,1737407439893,-669.97,0.00020444,2]
[349742901,1737407439902,-2065.12,0.00020444,2]
[349742902,1737407439912,-967.37,0.00020444,2]
[349742903,1737407439921,-1967.82,0.00020444,2]
[349742904,1737407439930,-500.0,0.00020444,2]
[349742905,1737407439940,-500.0,0.00020444,2]
[349742906,1737407439949,-500.0,0.00020444,2]
[349742907,1737407439959,-500.0,0.00020444,2]
[349742908,1737407439968,-500.0,0.00020444,2]
[349742909,1737407439981,-2497.3,0.00020444,2]
[349742910,1737407439991,-1204.78,0.00020444,2]
[349742911,1737407440001,-500.0,0.00020445,2]
[349742912,1737407440010,-500.0,0.00020445,2]
[349742913,1737407440020,-500.0,0.00020445,2]
[349742914,1737407440029,-500.0,0.00020445,2]
[349742915,1737407440039,-500.0,0.00020445,2]
[349742916,1737407440049,-500.0,0.00020445,2]
[349742917,1737407440058,-500.0,0.00020445,2]
[349742918,1737407440068,-500.0,0.00020445,2]
[349742919,1737407440078,-500.0,0.00020445,2]
[349742920,1737407440087,-500.0,0.00020445,2]
[349742921,1737407440096,-500.0,0.00020445,2]
[349742922,1737407440106,-619.11048621,0.00020445,2]
[349742923,1737407440116,-500.0,0.00020445,2]
[349742924,1737407440125,-500.0,0.00020445,2]
[349742925,1737407440134,-831.42,0.00020445,2]
[349742926,1737407440143,-500.0,0.00020445,2]
[349742927,1737407440152,-500.0,0.00020445,2]
[349742928,1737407440162,-500.0,0.00020445,2]
[349742929,1737407440171,-500.0,0.00020445,2]
[349742930,1737407440181,-500.0,0.00020445,2]
[349742931,1737407440190,-598.41,0.00020445,2]
[349742932,1737407440199,-500.0,0.00020445,2]
[349742933,1737407440209,-500.0,0.00020445,2]
[349742934,1737407440218,-500.0,0.00020445,2]
[349742935,1737407440230,-621.52,0.00020445,2]
[349742936,1737407440240,-500.0,0.00020445,2]
[349742938,1737407440249,-500.0,0.00020445,2]
[349742939,1737407440258,-500.0,0.00020445,2]
[349742940,1737407440267,-500.0,0.00020445,2]
[349742942,1737407440277,-500.0,0.00020445,2]
[349742944,1737407440287,-500.0,0.00020445,2]
[349742945,1737407440297,-500.0,0.00020445,2]
[349742946,1737407440307,-500.0,0.00020445,2]
[349742947,1737407440318,-500.0,0.00020445,2]
[349742948,1737407440327,-500.0,0.00020445,2]
[349742950,1737407440337,-500.0,0.00020445,2]
[349742951,1737407440346,-500.0,0.00020445,2]
[349742952,1737407440356,-500.0,0.00020445,2]
[349742953,1737407440366,-500.0,0.00020445,2]
[349742954,1737407440374,-500.0,0.00020445,2]
[349742955,1737407440383,-500.0,0.00020445,2]